bitfinex/quotes_BTCUSD_20240730
["timestamp","ask_amount","ask_price","bid_price","bid_amount"]
[1722374969349,0.00083,66242.0,66241.0,2.05338404]
[1722374971219,0.44444115,66261.0,66260.0,1.056443]
[1722374971415,0.44444115,66261.0,66260.0,1.358284]
[1722374971637,1.3464,66271.0,66269.0,0.4527]
[1722374972579,1.3464,66271.0,66269.0,0.7545]
[1722374972932,1.3464,66271.0,66269.0,0.7585]
[1722374973112,0.2020938,66270.0,66269.0,0.4567]
[1722374973320,0.2020938,66270.0,66269.0,0.4527]
[1722374973723,0.2020938,66270.0,66269.0,0.4567]
[1722374974125,0.2020938,66270.0,66269.0,0.7585]
[1722374974992,0.2020938,66270.0,66269.0,0.7545]
[1722374975366,0.2020938,66270.0,66269.0,0.7585]
[1722374975568,0.2020938,66270.0,66269.0,0.7545]
[1722374975769,0.2020938,66270.0,66269.0,0.4567]
[1722374975981,0.2020938,66270.0,66269.0,0.7585]
[1722374976146,0.2020938,66270.0,66269.0,0.7545]
[1722374976341,0.2020938,66270.0,66269.0,0.7585]
[1722374976554,0.12674664,66270.0,66269.0,0.7585]
[1722374976984,0.12674664,66270.0,66269.0,0.7545]
[1722374977579,0.05144664,66270.0,66269.0,0.7545]
[1722374977959,0.05144664,66270.0,66269.0,1.0563]
[1722374979038,0.0666,66271.0,66270.0,0.754487]
[1722374979246,0.11793279,66271.0,66270.0,0.754487]
[1722374979445,0.11793279,66271.0,66270.0,1.056282]
[1722374979755,0.00851,66273.0,66271.0,0.1447]
[1722374980058,0.00851,66273.0,66272.0,1.17632848]
[1722374980206,0.00851,66273.0,66272.0,1.08952848]
[1722374980384,0.00851,66273.0,66272.0,1.39131448]
[1722374981014,0.00851,66273.0,66272.0,1.47811448]
[1722374981220,0.00851,66273.0,66272.0,1.39131448]
[1722374982447,0.00851,66273.0,66272.0,1.40531448]
[1722374982648,0.00851,66273.0,66272.0,1.39131448]
[1722374982972,0.00851,66273.0,66272.0,1.40531448]
[1722374983440,0.00851,66273.0,66272.0,1.39131448]
[1722374983847,0.00851,66273.0,66272.0,1.40531448]
[1722374984050,0.00851,66273.0,66272.0,1.39131448]
[1722374984482,0.00851,66273.0,66272.0,1.40531448]
[1722374985667,0.00851,66273.0,66272.0,1.39131448]
[1722374986035,0.00851,66273.0,66272.0,1.40531448]
[1722374986235,0.00851,66273.0,66272.0,1.39131448]
[1722374986498,0.00851,66273.0,66272.0,1.40131448]
[1722374986650,0.00851,66273.0,66272.0,1.39131448]
[1722374987237,0.00851,66273.0,66272.0,1.40531448]
[1722374987438,0.00851,66273.0,66272.0,1.40011334]
[1722374988730,0.00851,66273.0,66272.0,1.41411334]
[1722374989189,0.00851,66273.0,66272.0,1.40011334]
[1722374989388,0.00851,66273.0,66272.0,1.41411334]
[1722374992278,0.00851,66273.0,66272.0,1.41109586]
[1722374995137,0.00851,66273.0,66272.0,1.39709586]
[1722374995540,0.00851,66273.0,66272.0,1.41109586]
[1722374995823,0.00851,66273.0,66272.0,1.39709586]
[1722374996211,0.00851,66273.0,66272.0,1.41109586]
[1722375001255,0.00851,66273.0,66272.0,1.49779586]
[1722375001663,0.00851,66273.0,66272.0,1.80858186]
[1722375001862,0.00851,66273.0,66272.0,1.93399844]
[1722375002064,0.00851,66273.0,66272.0,2.26403148]
[1722375002268,0.00851,66273.0,66272.0,2.25203148]
[1722375002468,0.00851,66273.0,66272.0,2.25202096]
[1722375002668,0.00851,66273.0,66272.0,2.26602096]
[1722375003399,0.00851,66273.0,66272.0,2.25202096]
[1722375004962,0.00851,66273.0,66272.0,2.26602096]
[1722375005164,0.00851,66273.0,66272.0,2.25202096]
[1722375005465,0.00851,66273.0,66272.0,2.42552096]
[1722375005671,0.00851,66273.0,66272.0,2.72730696]
[1722375006291,0.00851,66273.0,66272.0,2.82730696]
[1722375006523,0.00851,66273.0,66272.0,2.80530696]
[1722375006718,0.00851,66273.0,66272.0,2.82730696]
[1722375009089,0.00851,66273.0,66272.0,2.82729267]
[1722375009467,0.00851,66277.0,66276.0,1.808684]
[1722375009668,0.00851,66277.0,66276.0,2.68827681]
[1722375010052,0.00851,66277.0,66276.0,2.81027681]
[1722375010721,0.00851,66277.0,66276.0,2.78827681]
[1722375010919,0.00851,66277.0,66276.0,2.81027681]
[1722375011562,0.00851,66277.0,66276.0,2.33100881]
[1722375011855,0.00851,66277.0,66276.0,2.34100881]
[1722375012345,0.00851,66277.0,66276.0,2.34101935]
[1722375015677,0.00851,66277.0,66276.0,2.36101913]
[1722375016078,0.00851,66277.0,66276.0,2.34101913]
[1722375018754,0.00851,66277.0,66276.0,2.18971913]
[1722375018951,0.00851,66277.0,66276.0,2.07431704]
[1722375019157,0.00851,66277.0,66276.0,2.19971914]
[1722375019361,0.00851,66277.0,66276.0,2.07431704]
[1722375019691,0.00851,66277.0,66276.0,2.22171822]
[1722375019885,0.00851,66277.0,66276.0,2.20171822]
[1722375020087,0.00851,66277.0,66276.0,2.22171822]
[1722375020285,0.00851,66277.0,66276.0,2.19971822]
[1722375020490,0.00851,66277.0,66276.0,2.22171822]
[1722375021242,0.00851,66277.0,66276.0,2.22171737]
[1722375022042,0.00851,66277.0,66276.0,2.09631704]
[1722375022251,0.00851,66277.0,66276.0,2.22171737]
[1722375023011,0.00851,66277.0,66276.0,2.07431704]
[1722375023390,0.00851,66277.0,66276.0,2.19972338]
[1722375023676,0.00851,66277.0,66276.0,2.21972338]
[1722375024028,0.00851,66277.0,66276.0,2.22172338]
[1722375025425,0.00851,66277.0,66276.0,2.09631704]
[1722375025643,0.00851,66277.0,66276.0,2.22172142]
[1722375026402,0.00851,66277.0,66276.0,2.35752142]
[1722375026617,0.0148102,66286.0,66277.0,1.881456]
[1722375026778,0.0148102,66286.0,66277.0,2.28049342]
[1722375027580,0.0148102,66286.0,66285.0,1.444471]
[1722375027787,0.0148102,66286.0,66285.0,1.467471]
[1722375028844,0.0148102,66286.0,66285.0,1.481471]
[1722375029082,0.0148102,66286.0,66285.0,1.511731]
[1722375030074,0.0148102,66286.0,66285.0,1.813458]
[1722375030473,0.0148102,66286.0,66285.0,1.823458]
[1722375030730,0.0148102,66286.0,66285.0,1.813458]
[1722375030966,0.0148102,66286.0,66285.0,1.799458]
[1722375031148,0.0148102,66286.0,66285.0,1.813458]
[1722375031730,0.0148102,66286.0,66285.0,1.93885052]
[1722375035277,0.0156402,66286.0,66285.0,1.93885052]
[1722375036283,0.1374,66291.0,66290.0,1.357668]
[1722375036284,0.0530402,66291.0,66290.0,1.357668]
[1722375038835,0.0530402,66291.0,66290.0,1.371668]
[1722375045420,0.09727082,66296.0,66295.0,1.055883]
[1722375045612,0.0293402,66296.0,66295.0,1.055883]
[1722375045819,0.06793062,66297.0,66296.0,1.357546]
[1722375046019,0.06793062,66299.0,66296.0,0.301677]
[1722375046221,0.06793062,66299.0,66298.0,0.75417]
[1722375046462,0.18856487,66305.0,66296.0,0.301677]
[1722375046463,0.06793062,66300.0,66299.0,0.754157]
[1722375046666,0.06793062,66300.0,66299.0,1.05582]
[1722375047613,0.06793062,66300.0,66299.0,1.06382]
[1722375047821,0.09057417,66302.0,66301.0,0.754135]
[1722375048230,0.09057417,66302.0,66301.0,1.055789]
[1722375048532,0.23887417,66302.0,66301.0,1.055789]
[1722375048747,0.23887654,66302.0,66301.0,1.055789]
[1722375049773,0.1483,66302.0,66301.0,1.055789]
[1722375050309,0.1483,66302.0,66301.0,1.060789]
[1722375050756,0.23887654,66302.0,66301.0,1.060789]
[1722375052527,0.23887684,66302.0,66301.0,1.060789]
[1722375053267,0.1483,66302.0,66301.0,1.060789]
[1722375053477,0.1483,66302.0,66301.0,1.055789]
[1722375053880,0.1483,66302.0,66301.0,1.063789]
[1722375054082,0.23887684,66302.0,66301.0,1.055789]
[1722375054281,0.23887684,66302.0,66301.0,1.063789]
[1722375055311,0.23886847,66302.0,66301.0,1.063789]
[1722375055522,0.26151059,66302.0,66301.0,1.063789]
[1722375058659,0.26150195,66302.0,66301.0,1.063789]
[1722375061225,0.26150407,66302.0,66301.0,1.063789]
[1722375064323,0.26150913,66302.0,66301.0,1.063789]
[1722375064935,0.17542245,66302.0,66301.0,1.063789]
[1722375065510,0.17542245,66302.0,66301.0,0.762135]
[1722375065859,0.17542245,66302.0,66301.0,0.460481]
[1722375067568,0.17642114,66302.0,66301.0,0.460481]
[1722375067778,0.22422627,66302.0,66301.0,0.008]
[1722375067902,0.22432403,66302.0,66301.0,0.008]
[1722375069277,0.1456,66301.0,66292.0,0.150847]
[1722375069517,0.0648,66297.0,66291.0,0.151762]
[1722375069749,0.0648,66295.0,66291.0,0.151762]
[1722375069971,0.07606849,66294.0,66291.0,0.151762]
[1722375070212,0.02729642,66293.0,66291.0,0.151762]
[1722375070429,0.07618226,66293.0,66291.0,0.151762]
[1722375070672,0.11321209,66292.0,66291.0,0.000913]
[1722375071156,0.11321209,66292.0,66291.0,0.151763]
[1722375071880,0.16209793,66293.0,66291.0,0.151763]
[1722375072328,0.16209793,66293.0,66291.0,0.161763]
[1722375073817,0.16209793,66293.0,66291.0,0.151763]
[1722375074051,0.16208162,66293.0,66291.0,0.160763]
[1722375074529,0.16208162,66293.0,66292.0,0.150847]
[1722375075244,0.04888584,66293.0,66291.0,0.160762]
[1722375075478,0.16206612,66293.0,66291.0,0.000913]
[1722375075733,0.16206612,66293.0,66292.0,0.009]
[1722375075935,0.16206612,66293.0,66292.0,0.159847]
[1722375076882,0.16206612,66293.0,66292.0,0.150847]
[1722375077339,0.16205776,66293.0,66292.0,0.150847]
[1722375078204,0.16205776,66293.0,66291.0,0.151762]
[1722375078379,0.16205776,66293.0,66292.0,0.009]
[1722375079167,0.04888584,66293.0,66292.0,0.009]
[1722375080604,0.04888584,66293.0,66291.0,0.151762]
[1722375080809,0.16202711,66293.0,66291.0,0.151762]
[1722375081014,0.16202712,66293.0,66291.0,0.009913]
[1722375081599,0.16202712,66293.0,66292.0,0.009]
[1722375081799,0.16202712,66293.0,66291.0,0.000913]
[1722375082011,0.11313497,66292.0,66291.0,0.000913]
[1722375082202,0.11313497,66292.0,66291.0,0.009913]
[1722375082380,0.16202081,66293.0,66291.0,0.009913]
[1722375082580,0.16202081,66293.0,66291.0,0.000913]
[1722375083620,0.04888584,66293.0,66291.0,0.000913]
[1722375083899,0.16200608,66293.0,66292.0,0.009]
[1722375084099,0.16200608,66293.0,66291.0,0.000913]
[1722375084508,0.11675622,66293.0,66291.0,0.160762]
[1722375084713,0.06787038,66292.0,66291.0,0.151762]
[1722375085316,0.06787038,66292.0,66291.0,0.000913]
[1722375085677,0.06787038,66292.0,66291.0,0.009913]
[1722375086185,0.13937968,66293.0,66291.0,0.160763]
[1722375086390,0.04888584,66293.0,66291.0,0.160763]
[1722375086591,0.13937381,66293.0,66291.0,0.160763]
[1722375086791,0.09048797,66292.0,66291.0,0.160763]
[1722375087010,0.09048797,66292.0,66291.0,0.151763]
[1722375087234,0.06786472,66292.0,66291.0,0.161763]
[1722375087434,0.06786472,66292.0,66291.0,0.151763]
[1722375087435,0.09048649,66292.0,66291.0,0.151763]
[1722375087716,0.09048649,66292.0,66291.0,0.160763]
[1722375088058,0.09048649,66292.0,66291.0,0.151763]
[1722375088466,0.09048649,66292.0,66291.0,0.161763]
[1722375088753,0.04888584,66293.0,66291.0,0.143333]
[1722375088960,0.04888584,66293.0,66292.0,0.150847]
[1722375089693,0.04888584,66293.0,66291.0,0.160849]
[1722375089999,0.04888584,66293.0,66291.0,0.150849]
[1722375090206,0.04888584,66293.0,66291.0,0.159849]
[1722375090414,0.04888584,66293.0,66292.0,0.452542]
[1722375091036,0.04888584,66293.0,66291.0,0.009]
[1722375091237,0.04888584,66293.0,66292.0,0.150847]
[1722375091439,0.07407547,66293.0,66291.0,0.150849]
[1722375091753,0.09048105,66292.0,66291.0,0.150849]
[1722375092567,0.11561609,66292.0,66291.0,0.150849]
[1722375092979,0.09048105,66292.0,66291.0,0.150849]
[1722375093380,0.09048105,66292.0,66291.0,0.160849]
[1722375093567,0.11580378,66292.0,66291.0,0.160849]
[1722375093767,0.1158038,66292.0,66291.0,0.160849]
[1722375094307,0.1583629,66292.0,66291.0,0.160849]
[1722375095071,0.1158038,66292.0,66291.0,0.160849]
[1722375096872,0.1158038,66292.0,66291.0,0.01]
[1722375097209,0.11571365,66292.0,66291.0,0.01]
[1722375097553,0.11571675,66292.0,66291.0,0.01]
[1722375098785,0.13833941,66292.0,66291.0,0.01]
[1722375099255,0.13835784,66292.0,66291.0,0.01]
[1722375100202,0.02524457,66292.0,66291.0,0.01]
[1722375100452,0.02519982,66292.0,66291.0,0.01]
[1722375100688,0.05870419,66292.0,66291.0,0.01]
[1722375101393,0.02519982,66292.0,66291.0,0.01]
[1722375102378,0.02519982,66292.0,66291.0,0.0115542]
[1722375102580,0.02519982,66292.0,66291.0,0.01]
[1722375103680,0.02546749,66292.0,66291.0,0.01]
[1722375105344,0.02546749,66292.0,66291.0,0.54225]
[1722375105642,0.02546749,66292.0,66291.0,0.24055]
[1722375105846,0.02546749,66292.0,66291.0,0.0897]
[1722375106027,0.02546749,66292.0,66291.0,0.24055]
[1722375106400,0.02546749,66292.0,66291.0,0.01]
[1722375106609,0.02546749,66292.0,66291.0,0.16085]
[1722375106981,0.04971584,66293.0,66291.0,0.16085]
[1722375107151,0.02522398,66292.0,66291.0,0.16085]
[1722375107769,0.02522398,66292.0,66291.0,0.01]
[1722375108950,0.02522398,66292.0,66291.0,0.16085]
[1722375110340,0.04971584,66293.0,66291.0,0.16085]
[1722375110507,0.02486312,66292.0,66291.0,0.16085]
[1722375111325,0.02486312,66292.0,66291.0,0.15085]
[1722375111482,0.02486312,66292.0,66291.0,0.15985]
[1722375111684,0.02436312,66292.0,66291.0,0.15085]
[1722375112122,0.02436312,66292.0,66291.0,0.16085]
[1722375113473,0.21720585,66292.0,66291.0,0.01]
[1722375113685,0.32880758,66292.0,66291.0,0.01]
[1722375114130,0.19284273,66292.0,66291.0,0.01]
[1722375117457,0.21974472,66292.0,66291.0,0.01]
[1722375118288,0.19284273,66292.0,66291.0,0.01]
[1722375119564,0.21625975,66292.0,66291.0,0.01]
[1722375120283,0.21643149,66292.0,66291.0,0.01]
[1722375121912,0.21643149,66292.0,66281.0,0.150871]
[1722375122112,0.13592174,66287.0,66282.0,0.15087]
[1722375122302,0.07332801,66286.0,66282.0,0.15087]
[1722375122515,0.02358876,66285.0,66281.0,0.301745]
[1722375122716,0.07349871,66285.0,66283.0,0.150867]
[1722375122963,0.09432722,66284.0,66280.0,0.150873]
[1722375123220,0.02358876,66283.0,66281.0,0.150872]
[1722375123393,0.07361253,66283.0,66280.0,0.150874]
[1722375123596,0.02358876,66282.0,66280.0,0.150874]
[1722375124860,0.05013758,66281.0,66273.0,0.07532071]
[1722375125070,0.09059911,66274.0,66273.0,0.22621171]
[1722375125287,0.11324889,66275.0,66274.0,0.150888]
[1722375125501,0.02400807,66275.0,66274.0,0.150888]
[1722375125722,0.11322167,66275.0,66274.0,0.150888]
[1722375125929,0.16409912,66275.0,66273.0,0.07532071]
[1722375126129,0.16409912,66275.0,66273.0,0.22621071]
[1722375126337,0.16409912,66275.0,66273.0,0.07532071]
[1722375126532,0.05093435,66274.0,66273.0,2.071e-05]
[1722375127719,0.14147385,66274.0,66273.0,2.071e-05]
[1722375128273,0.05093435,66274.0,66273.0,2.071e-05]
[1722375128459,0.18817,66274.0,66273.0,0.01402071]
[1722375128601,0.18810215,66274.0,66273.0,0.01402071]
[1722375128830,0.16408727,66274.0,66273.0,0.01402071]
[1722375129035,0.16408676,66274.0,66273.0,0.01402071]
[1722375129445,0.18826652,66274.0,66273.0,0.01402071]
[1722375129652,0.16408546,66274.0,66273.0,0.01402071]
[1722375130087,0.05093435,66274.0,66273.0,0.01402071]
[1722375130441,0.14142592,66274.0,66273.0,0.01402071]
[1722375130711,0.14142612,66274.0,66273.0,0.01402071]
[1722375130912,0.05093435,66274.0,66273.0,0.01402071]
[1722375131465,0.1414273,66274.0,66273.0,0.01402071]
[1722375131688,0.05093435,66274.0,66273.0,0.01402071]
[1722375132463,0.0812129,66274.0,66273.0,0.01402071]
[1722375133267,0.1445129,66274.0,66273.0,0.01402071]
[1722375133418,0.25761709,66274.0,66273.0,0.01402071]
[1722375133658,0.28174873,66274.0,66273.0,0.01402071]
[1722375133868,0.1686734,66274.0,66273.0,0.01402071]
[1722375134426,0.15396793,66274.0,66273.0,0.01402071]
[1722375135417,0.24286566,66274.0,66273.0,0.01402071]
[1722375135625,0.26717179,66274.0,66273.0,0.01402071]
[1722375135830,0.26717209,66274.0,66273.0,0.01402071]
[1722375136031,0.26716043,66274.0,66273.0,0.01402071]
[1722375136270,0.23151294,66274.0,66273.0,0.01402071]
[1722375136484,0.46718393,66274.0,66273.0,0.01402071]
[1722375136680,0.33151294,66274.0,66273.0,0.01402071]
[1722375137324,0.33151294,66274.0,66273.0,2.071e-05]
[1722375137546,0.30123439,66274.0,66273.0,2.071e-05]
[1722375137745,0.30123439,66274.0,66273.0,0.00702071]
[1722375137943,0.30123439,66274.0,66273.0,2.071e-05]
[1722375138089,0.30123439,66274.0,66273.0,0.00102071]
[1722375138484,0.39310441,66274.0,66273.0,0.00102071]
[1722375138684,0.3687989,66274.0,66273.0,0.00102071]
[1722375138902,0.39308458,66274.0,66273.0,0.00102071]
[1722375142034,0.3687989,66274.0,66273.0,0.00102071]
[1722375142175,0.39324351,66274.0,66273.0,0.00102071]
[1722375142545,0.39321666,66274.0,66273.0,0.00102071]
[1722375145284,0.3687989,66274.0,66273.0,0.00102071]
[1722375145497,0.39301262,66274.0,66273.0,0.00102071]
[1722375146333,0.40301262,66274.0,66273.0,0.00102071]
[1722375146583,0.40292313,66274.0,66273.0,0.00102071]
[1722375147090,0.39292313,66274.0,66273.0,0.00102071]
[1722375151294,0.39292313,66274.0,66273.0,2.071e-05]
[1722375151504,0.39292313,66274.0,66273.0,0.00102071]
[1722375152281,0.39296215,66274.0,66273.0,0.00102071]
[1722375154492,0.52841565,66274.0,66273.0,0.00102071]
[1722375155002,0.39296215,66274.0,66273.0,0.00102071]
[1722375155434,0.3687989,66274.0,66273.0,0.00102071]
[1722375155634,0.39277928,66274.0,66273.0,0.00102071]
[1722375155935,0.3687989,66274.0,66273.0,0.00102071]
[1722375156134,0.39277746,66274.0,66273.0,0.00102071]
[1722375157391,0.52826961,66274.0,66273.0,0.00102071]
[1722375157827,0.52830677,66274.0,66273.0,0.00102071]
[1722375158212,0.39277746,66274.0,66273.0,0.00102071]
[1722375158411,0.52830683,66274.0,66273.0,0.00102071]
[1722375158783,0.39277746,66274.0,66273.0,0.00102071]
[1722375158988,0.5283266,66274.0,66273.0,0.00102071]
[1722375159205,0.3002847,66274.0,66273.0,0.00102071]
[1722375160796,0.43587434,66274.0,66273.0,0.00102071]
[1722375162129,0.43576917,66274.0,66273.0,0.00102071]
[1722375162556,0.30016167,66274.0,66273.0,0.00102071]
[1722375163155,0.35997961,66274.0,66273.0,0.00102071]
[1722375163388,0.30016167,66274.0,66273.0,0.00102071]
[1722375163935,0.30099167,66274.0,66273.0,0.00102071]
[1722375164182,0.36097852,66274.0,66273.0,0.00102071]
[1722375164765,0.30099167,66274.0,66273.0,0.00102071]
[1722375164946,0.30099167,66274.0,66261.0,0.0635]
[1722375165153,0.06784352,66266.0,66264.0,0.150911]
[1722375165391,0.03663081,66265.0,66264.0,0.150911]
[1722375165618,0.06058393,66265.0,66263.0,0.150913]
[1722375165797,0.02395312,66264.0,66263.0,0.150913]
[1722375166028,0.06075474,66264.0,66263.0,0.45274]
[1722375166377,0.06075474,66264.0,66262.0,0.301831]
[1722375166378,0.15123345,66264.0,66262.0,0.301831]
[1722375166579,0.06086862,66263.0,66262.0,0.452747]
[1722375166992,0.06786271,66269.0,66263.0,0.0609]
[1722375167197,0.02574873,66268.0,66267.0,0.815422]
[1722375167506,0.0015542,66268.0,66267.0,1.117231]
[1722375167917,0.03651695,66269.0,66268.0,1.056314]
[1722375168117,0.03651695,66269.0,66268.0,1.198214]
[1722375169056,0.03651695,66269.0,66268.0,1.201214]
[1722375169218,0.00083,66274.0,66273.0,0.150891]
[1722375169415,0.03649306,66274.0,66273.0,0.898555]
[1722375169622,0.03649306,66274.0,66273.0,1.200337]
[1722375170435,0.00083,66274.0,66273.0,1.287037]
[1722375170639,0.00083,66274.0,66273.0,1.588819]
[1722375171245,0.00083,66274.0,66273.0,1.599819]
[1722375172086,0.00083,66274.0,66273.0,1.930861]
[1722375172298,0.00083,66274.0,66273.0,1.932861]
[1722375172474,0.00083,66274.0,66273.0,2.07226865]
[1722375172677,0.00083,66274.0,66273.0,1.946861]
[1722375173952,0.00083,66274.0,66273.0,1.932861]
[1722375174078,0.00083,66274.0,66273.0,1.946861]
[1722375174495,0.00083,66274.0,66273.0,1.932861]
[1722375174896,0.00083,66274.0,66273.0,1.946861]
[1722375175670,0.00083,66274.0,66273.0,1.969861]
[1722375175871,0.00083,66274.0,66273.0,2.09525701]
[1722375176499,0.00083,66274.0,66273.0,2.54767205]
[1722375177738,0.00083,66274.0,66273.0,2.42227604]
[1722375177911,0.00083,66274.0,66273.0,2.54767116]
[1722375178115,0.00083,66274.0,66273.0,2.42227604]
[1722375178912,0.00083,66274.0,66273.0,2.43118934]
[1722375190761,0.00083,66274.0,66273.0,2.41718934]
[1722375190996,0.00083,66274.0,66273.0,2.43118934]
[1722375191235,0.00083,66274.0,66273.0,2.41718934]
[1722375191480,0.00083,66274.0,66273.0,2.43118934]
[1722375191993,0.00083,66274.0,66273.0,2.42918934]
[1722375192277,0.00083,66274.0,66273.0,2.43118934]
[1722375193278,0.00083,66274.0,66273.0,2.59038934]
[1722375193484,0.00083,66274.0,66273.0,2.73578235]
[1722375193753,0.00083,66274.0,66273.0,2.61038934]
[1722375194016,0.00083,66274.0,66273.0,2.71378677]
[1722375194244,0.00083,66274.0,66273.0,2.73578677]
[1722375194484,0.00083,66274.0,66273.0,2.71378677]
[1722375194736,0.00083,66274.0,66273.0,2.73578677]
[1722375196265,0.00083,66274.0,66273.0,2.64908677]
[1722375196519,0.00083,66274.0,66273.0,2.71378677]
[1722375197023,0.00083,66274.0,66273.0,2.58838934]
[1722375197285,0.00083,66274.0,66273.0,2.71378784]
[1722375197539,0.00083,66274.0,66273.0,2.55458799]
[1722375198480,0.00083,66274.0,66273.0,2.55658799]
[1722375198713,0.00083,66274.0,66273.0,2.57658799]
[1722375198962,0.00083,66274.0,66273.0,2.28425495]
[1722375199185,0.00083,66274.0,66273.0,2.2455563]
[1722375199411,0.00083,66274.0,66273.0,2.37096191]
[1722375200377,0.00083,66274.0,66273.0,2.37096295]
[1722375200830,0.00083,66274.0,66273.0,2.39396295]
[1722375201285,0.00083,66274.0,66273.0,2.40596295]
[1722375202932,0.00083,66274.0,66273.0,2.39396295]
[1722375203167,0.00083,66274.0,66273.0,2.40596295]
[1722375203668,0.00083,66274.0,66273.0,2.39396295]
[1722375203901,0.00083,66274.0,66273.0,2.40596295]
[1722375205558,0.00083,66274.0,66273.0,2.39396295]
[1722375206281,0.00083,66274.0,66273.0,2.40596295]
[1722375206958,0.00083,66274.0,66273.0,2.39396298]
[1722375207439,0.00083,66274.0,66273.0,2.40596298]
[1722375209553,0.00083,66274.0,66273.0,2.39396298]
[1722375210515,0.00083,66274.0,66273.0,2.39396346]
[1722375211483,0.00083,66274.0,66273.0,2.40596346]
[1722375212461,0.00083,66274.0,66273.0,2.39396346]
[1722375213721,0.00083,66274.0,66273.0,2.39396462]
[1722375214202,0.00083,66274.0,66273.0,2.39396506]
[1722375214429,0.00083,66274.0,66273.0,2.40396506]
[1722375215869,0.00083,66274.0,66273.0,2.39396506]
[1722375216114,0.00083,66274.0,66273.0,2.40396466]
[1722375216367,0.00083,66274.0,66273.0,2.39396466]
[1722375216615,0.00083,66274.0,66273.0,2.40396466]
[1722375216852,0.00020726,66274.0,66273.0,2.40396466]
[1722375217086,0.00020726,66274.0,66273.0,2.39396466]
[1722375217306,0.00020726,66274.0,66273.0,2.40396466]
[1722375217541,0.0015542,66279.0,66276.0,0.03026]
[1722375217791,0.0015542,66279.0,66278.0,0.539338]
[1722375218011,0.0015542,66279.0,66278.0,1.57002336]
[1722375219242,0.0015542,66279.0,66278.0,1.58402336]
[1722375220613,0.0787,66280.0,66279.0,0.15648635]
[1722375220841,0.0787,66280.0,66279.0,0.28189471]
[1722375221313,0.1416,66280.0,66279.0,1.48891071]
[1722375221547,0.1416,66280.0,66279.0,1.45020235]
[1722375222604,0.1416,66280.0,66279.0,1.46420235]
[1722375224151,0.1416,66280.0,66279.0,1.45020235]
[1722375224436,0.1416,66280.0,66279.0,1.46420235]
[1722375224653,0.1416,66280.0,66279.0,1.45020235]
[1722375225215,0.1416,66280.0,66279.0,1.46420235]
[1722375226486,0.1416,66280.0,66279.0,1.37750235]
[1722375226737,0.1416,66280.0,66279.0,1.07574835]
[1722375227857,0.20247028,66280.0,66279.0,0.01960935]
[1722375228938,0.3383988,66280.0,66279.0,0.01960935]
[1722375229180,0.3383988,66280.0,66279.0,0.00560935]
[1722375229415,0.20330028,66280.0,66279.0,0.01760935]
[1722375230099,0.31323778,66280.0,66279.0,0.01760935]
[1722375230321,0.20361347,66280.0,66279.0,0.01760935]
[1722375230588,0.17741009,66280.0,66279.0,0.01760935]
[1722375230818,0.2036136,66280.0,66279.0,0.01760935]
[1722375231054,0.33939254,66280.0,66279.0,0.01760935]
[1722375231310,0.2036136,66280.0,66279.0,0.00560935]
[1722375231796,0.2046136,66280.0,66279.0,0.00560935]
[1722375232034,0.2036136,66280.0,66279.0,0.00560935]
[1722375232296,0.2056136,66280.0,66279.0,0.00560935]
[1722375233501,0.20523129,66280.0,66279.0,0.00560935]
[1722375235037,0.20323129,66280.0,66279.0,0.00560935]
[1722375235443,0.20623129,66280.0,66279.0,0.00560935]
[1722375236088,0.20323129,66280.0,66279.0,0.00560935]
[1722375236492,0.18041009,66280.0,66279.0,0.00560935]
[1722375236703,0.20633978,66280.0,66279.0,0.00560935]
[1722375236910,0.24144352,66280.0,66279.0,0.00560935]
[1722375239487,0.23844352,66280.0,66279.0,0.00560935]
[1722375239828,0.24168907,66280.0,66279.0,0.00560935]
[1722375240128,0.34168907,66280.0,66279.0,0.00560935]
[1722375241223,0.33868907,66280.0,66279.0,0.00560935]
[1722375241435,0.47424596,66280.0,66279.0,0.00560935]
[1722375241613,0.34368907,66280.0,66279.0,0.00560935]
[1722375242265,0.34400218,66280.0,66279.0,0.00560935]
[1722375242678,0.34400184,66280.0,66279.0,0.00560935]
[1722375243135,0.33900184,66280.0,66279.0,0.00560935]
[1722375243353,0.33901006,66280.0,66279.0,0.00560935]
[1722375243562,0.34501006,66280.0,66279.0,0.00560935]
[1722375243661,0.33901006,66280.0,66279.0,0.00560935]
[1722375243867,0.34801006,66280.0,66279.0,0.00660935]
[1722375244280,0.32151383,66280.0,66279.0,0.00660935]
[1722375244478,0.34787408,66280.0,66279.0,0.00660935]
[1722375245507,0.34785367,66280.0,66279.0,0.00660935]
[1722375245725,0.34785394,66280.0,66279.0,0.00660935]
[1722375248748,0.34784065,66280.0,66279.0,0.00660935]
[1722375249693,0.34794102,66280.0,66279.0,0.00660935]
[1722375252228,0.32151383,66280.0,66279.0,0.00660935]
[1722375252437,0.34795304,66280.0,66279.0,0.00660935]
[1722375255541,0.34786596,66280.0,66279.0,0.00660935]
[1722375255925,0.32151383,66280.0,66279.0,0.00660935]
[1722375256134,0.34800379,66280.0,66279.0,0.00660935]
[1722375257555,0.35800379,66280.0,66279.0,0.00660935]
[1722375258805,0.33151383,66280.0,66279.0,0.00660935]
[1722375258995,0.3576086,66280.0,66279.0,0.00660935]
[1722375260145,0.32250486,66280.0,66279.0,0.00660935]
[1722375261517,0.32250486,66280.0,66279.0,0.00752235]
[1722375261741,0.32246284,66280.0,66279.0,0.00752235]
[1722375262127,0.29641009,66280.0,66279.0,0.00752235]
[1722375262332,0.32254934,66280.0,66279.0,0.00752235]
[1722375263179,0.52007875,66280.0,66279.0,0.00752235]
[1722375263334,0.32254934,66280.0,66279.0,0.00752235]
[1722375263526,0.52007951,66280.0,66279.0,0.00752235]
[1722375263727,0.45806535,66280.0,66279.0,0.00752235]
[1722375263938,0.32254934,66280.0,66279.0,0.00752235]
[1722375264277,0.45806535,66280.0,66279.0,0.00752235]
[1722375264660,0.32254934,66280.0,66279.0,0.00752235]
[1722375264868,0.45806535,66280.0,66279.0,0.00752235]
[1722375265063,0.32254934,66280.0,66279.0,0.00752235]
[1722375265446,0.14481009,66280.0,66279.0,0.00752235]
[1722375265674,0.07115335,66280.0,66279.0,0.00752235]
[1722375267061,0.07109131,66280.0,66279.0,0.00752235]
[1722375267262,0.20673763,66280.0,66279.0,0.00752235]
[1722375267461,0.30673763,66280.0,66279.0,0.00752235]
[1722375268354,0.17109131,66280.0,66279.0,0.00752235]
[1722375268550,0.07109131,66280.0,66279.0,0.00752235]
[1722375268913,0.07102854,66280.0,66279.0,0.00752235]